Cogmind - Beta 15 --- EXPLORER MODE // 2025.08.04 @ 22:52:52 Player: Dert Result: Self-destructed Performance ------------- Evolutions (3) 1500 Regions Visited (10) 2000 Robots Destroyed (83) 415 Value Destroyed (2742) 2742 Prototype IDs (4) 80 Alien Tech Used (0) 0 Bonus (533) 533 TOTAL SCORE: 7270 Bonus ------- Follower Combat Kills 33 Entered Garrisons 200 Aligned with FarCom 300 Cogmind --------- Core Integrity 256/700 Matter 278/300 Energy 52/150 System Corruption 8% Temperature Warning (375) Movement Treading (560) Ox5 Location -7/Factory Parts ------- > --- POWER (2) -------- Micro Nuclear Core > --- PROPULSION (4) --- Light Treads > --- UTILITY (5) ------ Huge Storage Unit Hardened Medium Armor Plating > --- WEAPON (3) ------- Precision Shock Rifle Precision Shock Rifle > --- INVENTORY (25) --- Light Ion Engine Light Ion Engine Light Treads Light Treads Carbon-fiber Leg Flight Unit High-capacity Matter Pod (200) Visual Processing Unit Visual Processing Unit Light Armor Plating Hardened Medium Armor Plating Precision Shock Rifle Field Laser Heavy Laser Gatling Laser Gauss Rifle Gauss Rifle Makeshift Shrapnel Gun Heavy Flail Axe Chainsword Peak State ------------ > --- POWER ------------ Light Ion Engine Enhanced Nuclear Core > --- PROPULSION ------- Light Treads Light Treads Light Treads Light Treads > --- UTILITY ---------- Huge Storage Unit Propulsion Shielding Medium Armor Plating Hardened Medium Armor Plating Hardened Medium Armor Plating > --- WEAPON ----------- Precision Shock Rifle Precision Shock Rifle Precision Shock Rifle > --- INVENTORY -------- Light Ion Engine Light Treads Light Treads Carbon-fiber Leg Flight Unit High-capacity Matter Pod Visual Processing Unit Visual Processing Unit Light Armor Plating Hardened Medium Armor Plating Precision Shock Rifle Field Laser Heavy Laser Gatling Laser Gauss Rifle Gauss Rifle Makeshift Shrapnel Gun Heavy Flail Axe [Rating: 40] Favorites ----------- Power Deuterium Engine Engine Deuterium Engine Power Core Light Nuclear Core Propulsion Light Treads Treads Light Treads Leg Carbon-fiber Leg Flight Unit Flight Unit Utility Targeting Computer Device Improved Terrain Scanner Storage Large Storage Unit Processor Targeting Computer Protection Medium Armor Plating Weapon Heavy Flail Energy Gun Gatling Laser Ballistic Gun Heavy Assault Rifle Ballistic Cannon Assault Cannon Launcher Rocket Launcher Special Weapon Welding Torch Impact Weapon Heavy Flail Slashing Weapon Axe Build | -11 -10 -10 -9 -9 -9 -8 -8 -8 -8 -7 ------- Run | Yrd Mat Min Mat Min Exi Min Mat Gar Mat Fac Slots Evolved 7 | . 1 . 2 . . . 2 . . 2 Power 1 | . . . . . . . 1 . . . Propulsion 2 | . . . . . . . 1 . . 1 Utility 3 | . 1 . 2 . . . . . . . Weapon 1 | . . . . . . . . . . 1 Parts Attached 70 | 7 3 7 9 . . . 16 7 7 14 Power 12 | 1 . . 1 . . . 4 2 . 4 Engine 7 | 1 . . 1 . . . 1 2 . 2 Core 5 | . . . . . . . 3 . . 2 Reactor . | . . . . . . . . . . . Propulsion 19 | 2 . 3 4 . . . 4 1 3 2 Treads 16 | 2 . 2 4 . . . 4 1 3 . Leg 2 | . . . . . . . . . . 2 Wheel . | . . . . . . . . . . . Hover . | . . . . . . . . . . . Flight 1 | . . 1 . . . . . . . . Utility 20 | 3 2 1 2 . . . 4 2 4 2 Device 3 | . . 1 . . . . 1 1 . . Storage 4 | 1 1 . . . . . 2 . . . Processor 2 | 1 1 . . . . . . . . . Hackware . | . . . . . . . . . . . Protection 11 | 1 . . 2 . . . 1 1 4 2 Artifact . | . . . . . . . . . . . Weapon 19 | 1 1 3 2 . . . 4 2 . 6 Energy Gun 9 | . . 1 . . . . 1 2 . 5 Energy Cannon . | . . . . . . . . . . . Ballistic Gun 5 | 1 . 1 1 . . . 2 . . . Ballistic Cannon 1 | . . . . . . . 1 . . . Launcher 1 | . . 1 . . . . . . . . Special Weapon 1 | . 1 . . . . . . . . . Impact Weapon 1 | . . . 1 . . . . . . . Slashing Weapon 1 | . . . . . . . . . . 1 Piercing Weapon . | . . . . . . . . . . . Special Melee Weapon . | . . . . . . . . . . . Unidentified Prototypes 4 | . . . . . . . 2 . . 2 Corrupted Parts 1 | . . . . . . . . . . 1 System Corruption 3 | . . . . . . . . . . 3 Parts Lost 29 | . . 4 . . . . 13 2 . 10 Power 7 | . . 1 . . . . 2 1 . 3 Propulsion 8 | . . 1 . . . . 4 . . 3 Utility 8 | . . . . . . . 4 1 . 3 Weapon 6 | . . 2 . . . . 3 . . 1 Highest Loss Streak 9 | . . 1 . . . . 9 1 . 9 To Critical Strikes . | . . . . . . . . . . . Average Backups 10 | 1 5 8 11 10 10 10 10 10 14 17 Power 1 | . 1 1 1 1 1 1 1 1 2 1 Propulsion 2 | . 1 2 4 3 3 3 2 2 4 4 Utility 4 | 1 3 5 5 4 4 4 4 4 4 4 Weapon 2 | . . . 1 2 2 2 2 3 3 6 Tool/Special . | . . . . . . . . . . . Unused Backups 8 | . . . . 1 . . . . . 7 Power . | . . . . . . . . . . . Propulsion 1 | . . . . . . . . . . 1 Utility 4 | . . . . 1 . . . . . 3 Weapon 3 | . . . . . . . . . . 3 Tool/Special . | . . . . . . . . . . . Average Slot Usage (%) 93 | . 95 91 81 100 100 100 86 87 99 96 Engine 10 | . 12 11 9 10 10 10 7 9 16 10 Core 1 | . . . . . . . 4 4 . 1 Treads 22 | . 25 19 20 20 20 20 22 25 25 27 Device 5 | . . 8 10 10 10 10 5 . 1 . Storage 11 | . 12 12 10 10 10 10 12 16 12 7 Processor 10 | . 25 15 10 10 10 10 8 8 8 1 Protection 11 | . . . 1 20 20 20 8 5 18 25 Energy Gun 6 | . . 10 . . . . 1 11 16 18 Ballistic Gun 6 | . 12 10 10 10 10 10 5 . . . Impact Weapon 3 | . . . 7 10 10 10 5 . . . Peak Build Rating 40 | 6 9 14 23 23 22 22 28 25 28 40 Average Rating 20 | 5 8 12 16 22 22 22 23 21 24 33 On Entrance 17 | . 6 9 14 23 22 22 22 25 21 28 Naked Turns . | . . . . . . . . . . . Heaviest Build 130 | 16 27 29 50 50 50 50 130 130 126 127 Greatest Support 80 | 40 40 40 46 46 46 46 75 60 60 80 Greatest Overweight (x) 4 | . . 1 1 1 1 1 4 2 2 3 Average Overweight (x) . | . . . . 1 1 1 1 1 1 1 Largest Inventory Capacity 25 | 10 15 15 15 15 15 15 25 25 25 25 Average Capacity 18 | 8 11 15 15 15 15 15 23 25 25 25 Most Carried 21 | 3 9 10 15 14 10 10 16 12 17 21 Average Carried 10 | 1 5 8 11 10 10 10 10 10 14 17 Final Capacity 25 | 10 15 15 15 15 15 15 25 25 25 25 Final Carried 21 | 3 8 9 15 10 10 10 10 12 17 21 Class Distribution -------------------- 69% | Hacker-Mutant 12% | Scavenger-Mutant 8% | Hacker-Assassin 7% | Scavenger-Tank Dominant Class ---------------- Hacker-Mutant | -10/Materials Hacker-Mutant | -10/Mines Hacker-Mutant | -9/Materials Hacker-Mutant | -9/Mines Hacker-Mutant | -9/Exiles Hacker-Assassin | -8/Mines Hacker-Mutant | -8/Materials Hacker-Mutant | -8/Garrison Scavenger-Mutant | -8/Materials Scavenger-Tank | -7/Factory Resources | -11 -10 -10 -9 -9 -9 -8 -8 -8 -8 -7 ----------- Run | Yrd Mat Min Mat Min Exi Min Mat Gar Mat Fac Matter Collected 2423 | 210 236 231 144 . . . 623 349 72 558 Remotely . | . . . . . . . . . . . Salvage Created 3044 | . 194 444 137 . . . 976 355 147 791 Parts 165 | . 13 20 10 . . . 59 22 7 34 Haulers Intercepted 1 | . . . . . . . 1 . . . Recyclers Shooed 3 | . . . 1 . . . 2 . . . Parts Field Recycled . | . . . . . . . . . . . Retrieved Matter . | . . . . . . . . . . . Parts Self-Destructed . | . . . . . . . . . . . Prevented . | . . . . . . . . . . . Kills | -11 -10 -10 -9 -9 -9 -8 -8 -8 -8 -7 ------- Run | Yrd Mat Min Mat Min Exi Min Mat Gar Mat Fac Combat Hostiles Destroyed 65 | . 6 8 3 . . . 22 13 3 10 Melee 1 | . . . . . . . 1 . . . Guns 49 | . 6 8 3 . . . 13 6 3 10 Cannons 7 | . . . . . . . . 7 . . AOE 7 | . . . . . . . 7 . . . Classes Destroyed 13 | . 3 3 2 . . . 2 1 . 2 Worker 3 | . . . 1 . . . 2 . . . Builder 1 | . . 1 . . . . . . . . Tunneler 2 | . . 1 . . . . . . . 1 Hauler 1 | . . . . . . . 1 . . . Recycler 6 | . . 2 . . . . . . . 4 Watcher 5 | . 2 . . . . . . . 1 2 Swarmer 13 | . 4 2 . . . . 2 5 . . Grunt 28 | . 2 6 . . . . 11 5 1 3 Brawler 2 | . . . . . . . . 1 1 . Duelist 1 | . . . . . . . . . . 1 Sentry 15 | . . . 3 . . . 7 2 1 2 Hunter 4 | . . . . . . . 2 . . 2 Programmer 2 | . . . . . . . . . . 2 Best Kill Streak 7 | . 4 3 2 . . . 7 4 2 4 Combat Bots Only 6 | . 4 2 1 . . . 6 4 2 3 Max Kills in Single Turn 3 | . 1 1 1 . . . 2 3 2 1 Gunslinging 1 | . . . . . . . . 1 1 . Exploded 1 | . . . . . . . 1 . . . Melee 1 | . . . . . . . 1 . . . Uniques/NPCs Destroyed . | . . . . . . . . . . . Combat | -11 -10 -10 -9 -9 -9 -8 -8 -8 -8 -7 -------- Run | Yrd Mat Min Mat Min Exi Min Mat Gar Mat Fac Hostile Shots Fired 709 | . 47 82 26 . . . 293 69 8 184 Missed 208 | . 13 22 10 . . . 92 23 3 45 Hits 501 | . 34 60 16 . . . 201 46 5 139 Melee 4 | . . . . . . . . 3 . 1 Projectile 497 | . 34 60 16 . . . 201 43 5 138 Critical Strikes 24 | . 1 1 . . . . 14 1 . 7 Actively Blocked 2 | . . . . . . . . . . 2 Damage Taken 5025 | . 209 477 144 . . . 1941 404 47 1803 Core 912 | . 32 112 25 . . . 279 20 . 444 Absorbed by Shields 7 | . . . . . . . . 7 . . Redirected to Shielding 51 | . . . . . . . . . . 51 Ignored by Resistances 2876 | . 141 301 88 . . . 1178 255 28 885 Core Remaining (%) 70 | 100 . 42 . . . 93 . . 45 . Volleys Fired 296 | . 42 34 12 . . 1 97 37 8 65 Largest 3 | . 2 2 2 . . 1 2 2 2 3 Hottest 212 | . 40 64 57 . . 23 98 160 160 212 Shots Fired 398 | . 45 45 16 . . 1 111 48 16 116 Gun 335 | . 42 45 12 . . 1 89 14 16 116 Cannon 39 | . . . . . . . 5 34 . . Launcher 21 | . . . 4 . . . 17 . . . Special 3 | . 3 . . . . . . . . . Kinetic 203 | . 42 34 12 . . 1 78 34 . 2 Thermal 107 | . 3 11 . . . . 16 14 16 47 Explosive 21 | . . . 4 . . . 17 . . . Electromagnetic 67 | . . . . . . . . . . 67 Robot Hit Streak 51 | . 12 51 18 . . 19 25 35 14 50 Robot Miss Streak 2 | . 2 1 1 . . . 1 1 1 2 Penetration Max 1 | . . . . . . . 1 . . . Secondary Targets 4 | . . . . . . . . 1 1 2 Max Gunslinging Chain 1 | . . . . . . . . 1 1 1 Shots Hit Robots 352 | . 33 42 15 . . 1 100 43 12 106 Core Hits 179 | . 15 25 10 . . . 45 21 10 53 Critical Kills . | . . . . . . . . . . . Critical Parts Destroyed . | . . . . . . . . . . . Critical Strikes 5 | . . . . . . . 2 . . 3 Burn 4 | . . . . . . . 2 . . 2 Corrupt 1 | . . . . . . . . . . 1 Melee Attacks 5 | . . . . . . . 5 . . . Impact 5 | . . . . . . . 5 . . . Slashing . | . . . . . . . . . . . Piercing . | . . . . . . . . . . . Sneak Attacks . | . . . . . . . . . . . Combat Hostiles . | . . . . . . . . . . . Follow-up Attacks . | . . . . . . . . . . . Damage Inflicted 6676 | . 273 605 343 . . 12 2586 966 309 1582 Guns 4537 | . 266 597 226 . . 12 1336 234 309 1557 Cannons 810 | . . . . . . . 78 732 . . Explosions 1121 | . . . 117 . . . 979 . . 25 Melee 193 | . . . . . . . 193 . . . Ramming 11 | . 3 8 . . . . . . . . Kinetic 2915 | . 266 479 226 . . 12 1171 732 . 29 Thermal 2338 | . 4 118 . . . . 572 234 309 1101 Explosive 767 | . . . 117 . . . 650 . . . Electromagnetic 452 | . . . . . . . . . . 452 Impact 193 | . . . . . . . 193 . . . Slashing . | . . . . . . . . . . . Piercing . | . . . . . . . . . . . Highest Corruption 8 | . . . . . . . . 1 1 8 Average Corruption 2 | . . . . . . . . 1 1 3 Corruption Purged . | . . . . . . . . . . . Corruption Blocked . | . . . . . . . . . . . Effects 18 | . . . . . . . . 1 3 14 Message Errors 2 | . . . . . . . . 1 1 . Matter Fused 4 | . . . . . . . . . . 4 Heat Flow Errors 1 | . . . . . . . . . . 1 Energy Discharges 3 | . . . . . . . . . . 3 Parts Fused 1 | . . . . . . . . . 1 . Data Loss (minor) 2 | . . . . . . . . . 1 1 Data Loss (major) 1 | . . . . . . . . . . 1 Misfires 1 | . . . . . . . . . . 1 Alerts 1 | . . . . . . . . . . 1 Weapon Failures 2 | . . . . . . . . . . 2 Overload Shots . | . . . . . . . . . . . Overflow Damage 55 | . . . . . . . 52 3 . . Projectiles 16 | . . . . . . . 13 3 . . Explosions 21 | . . . . . . . 21 . . . Melee 18 | . . . . . . . 18 . . . Knockbacks 10 | . . . . . . . 1 9 . . Impact . | . . . . . . . . . . . Kinetic 10 | . . . . . . . 1 9 . . Secondary . | . . . . . . . . . . . Self-Inflicted Damage 88 | . . . . . . . 66 . . 22 Shots 4 | . . . . . . . 3 . . 1 Rammed 6 | . 1 5 . . . . . . . . Targets Rammed 6 | . 1 5 . . . . . . . . Kicked . | . . . . . . . . . . . Crushed . | . . . . . . . . . . . Highest Temperature 968 | . 6 42 6 . . . 276 380 385 968 Average Temperature 178 | . 6 9 4 . . . 78 126 167 241 Received Heat Transfer 2394 | . 78 444 54 . . . 1269 270 18 261 Effects 79 | . . . . . . . . 6 7 66 Shutdowns 21 | . . . . . . . . 2 2 17 Energy Bleed 9 | . . . . . . . . 1 1 7 Interference 11 | . . . . . . . . 1 3 7 Matter Decay 11 | . . . . . . . . 2 . 9 Short Circuit 7 | . . . . . . . . . . 7 Damage (minor) 7 | . . . . . . . . . 1 6 Damage (major) 9 | . . . . . . . . . . 9 Damage (core) 4 | . . . . . . . . . . 4 Siege Activations . | . . . . . . . . . . . Martial Activations . | . . . . . . . . . . . Shielding Activations . | . . . . . . . . . . . Robots Disrupted . | . . . . . . . . . . . Combat Hostiles . | . . . . . . . . . . . Robots Corrupted 1 | . . . . . . . 1 . . . Combat Hostiles 1 | . . . . . . . 1 . . . Parts Fried 1 | . . . . . . . . . . 1 Impact Corruptions 2 | . . . . . . . 2 . . . Robots Melted . | . . . . . . . . . . . Combat Hostiles . | . . . . . . . . . . . Parts Melted 7 | . . . . . . . . . 1 6 Heat Transferred 4929 | . 25 275 . . . . 866 521 700 2542 Parts Sabotaged . | . . . . . . . . . . . Parts Stolen . | . . . . . . . . . . . Parts Stripped . | . . . . . . . . . . . Power Chain Reactions 1 | . . . . . . . . . . 1 Alert | -11 -10 -10 -9 -9 -9 -8 -8 -8 -8 -7 ------- Run | Yrd Mat Min Mat Min Exi Min Mat Gar Mat Fac Maximum Alert Level 1 | . . . . . . . . 1 . . Low Security (%) 94 | 100 100 100 100 100 . 100 100 53 100 100 Level 1 5 | . . . . . . . . 46 . . Level 2 . | . . . . . . . . . . . Level 3 . | . . . . . . . . . . . Level 4 . | . . . . . . . . . . . Level 5 . | . . . . . . . . . . . High Security . | . . . . . . . . . . . Max Security . | . . . . . . . . . . . Peak Influence 290 | . 70 50 75 . . . 145 290 103 55 Initial 103 | . . . 1 . . . . . 103 . Average 30 | . 9 3 11 . . . 34 173 24 6 Influence Increases 2045 | . 175 220 156 . . . 771 310 94 319 Destroy 0b10 Robot/C 1320 | . 120 160 80 . . . 440 260 60 200 Destroy 0b10 Robot/NC 90 | . 10 20 5 . . . 15 . 5 35 Destroy Leader 382 | . 24 40 40 . . . 152 30 22 74 Successful Hack 22 | . 6 . 6 . . . . . 7 3 Disable Machine 12 | . . . 4 . . . 8 . . . Destroy Structure 144 | . . . 21 . . . 111 5 . 7 Lose Combat Pursuer 75 | . 15 . . . . . 45 15 . . Influence Decreases 2045 | . 175 215 161 . . . 771 20 384 319 Entered New Map 191 | . . . 4 . . . . . 187 . Time Decay 1657 | . 175 195 157 . . . 641 . 197 292 Lost Part 197 | . . 20 . . . . 130 20 . 27 Squads Dispatched 12 | . . . 1 . . . 7 . . 4 Investigation 1 | . . . . . . . . . . 1 Extermination 2 | . . . . . . . . . . 2 Reinforcement 4 | . . . 1 . . . 3 . . . Assault . | . . . . . . . . . . . Garrison 5 | . . . . . . . 4 . . 1 Intercept . | . . . . . . . . . . . Searches Triggered . | . . . . . . . . . . . Construction Impeded . | . . . . . . . . . . . Haulers Reinforced . | . . . . . . . . . . . Active Scanning Responses . | . . . . . . . . . . . Cargo Convoy Interrupts . | . . . . . . . . . . . Stealth | -11 -10 -10 -9 -9 -9 -8 -8 -8 -8 -7 --------- Run | Yrd Mat Min Mat Min Exi Min Mat Gar Mat Fac Distress Signals 9 | . . . . . . . 6 . . 3 Communications Jammed . | . . . . . . . . . . . Distress Signals . | . . . . . . . . . . . Times Spotted 113 | . 14 10 8 . . . 36 14 5 26 Peak Tracking Total 6 | . 3 2 2 . . . 6 3 2 4 Tactical Retreats 5 | . 1 . . . . . 3 1 . . Traps | -11 -10 -10 -9 -9 -9 -8 -8 -8 -8 -7 ------- Run | Yrd Mat Min Mat Min Exi Min Mat Gar Mat Fac Traps Triggered 8 | . 1 . 1 . . . . 4 . 2 Indirectly . | . . . . . . . . . . . Trap Hack Attempts . | . . . . . . . . . . . Triggered . | . . . . . . . . . . . Disarmed . | . . . . . . . . . . . Reprogrammed . | . . . . . . . . . . . Reused . | . . . . . . . . . . . Traps Extracted . | . . . . . . . . . . . Installed . | . . . . . . . . . . . Triggered . | . . . . . . . . . . . Machines | -11 -10 -10 -9 -9 -9 -8 -8 -8 -8 -7 ---------- Run | Yrd Mat Min Mat Min Exi Min Mat Gar Mat Fac Machines Disabled 3 | . . . 1 . . . 2 . . . Max in Single Turn 2 | . . . 1 . . . 2 . . . Machines Repaired . | . . . . . . . . . . . Machines Dismantled . | . . . . . . . . . . . Machines Sabotaged . | . . . . . . . . . . . Overloaded Fab Kills . | . . . . . . . . . . . Hacking | -11 -10 -10 -9 -9 -9 -8 -8 -8 -8 -7 --------- Run | Yrd Mat Min Mat Min Exi Min Mat Gar Mat Fac Machines Accessed 9 | . 1 . 2 . 1 . 1 . 2 2 Terminals 7 | . 1 . 2 . . . . . 2 2 Fabricators . | . . . . . . . . . . . Repair Stations . | . . . . . . . . . . . Recycling Units . | . . . . . . . . . . . Scanalyzers . | . . . . . . . . . . . Garrison Access 1 | . . . . . . . 1 . . . Total Hacks 14 | . 1 . 3 . 2 . 1 . 3 4 Successful 7 | . 1 . 1 . 2 . 1 . 1 1 Failed 7 | . . . 2 . . . . . 2 3 Catastrophic 3 | . . . . . . . . . 2 1 Database Lockouts . | . . . . . . . . . . . Manual 9 | . 1 . . . . . 3 . 3 2 Terminals 11 | . 1 . 3 . . . . . 3 4 Fabricators . | . . . . . . . . . . . Repair Stations . | . . . . . . . . . . . Recycling Units . | . . . . . . . . . . . Scanalyzers . | . . . . . . . . . . . Garrison Access 1 | . . . . . . . 1 . . . Terminal Hacks 6 | . 1 . 1 . 2 . . . 1 1 Record 2 | . . . . . 2 . . . . . Open DSF 1 | . . . . . . . . . . 1 Level Access Points 2 | . . . 1 . . . . . 1 . Branch Access Points 1 | . 1 . . . . . . . . . Fabricator Hacks . | . . . . . . . . . . . Repair Station Hacks . | . . . . . . . . . . . Recycling Unit Hacks . | . . . . . . . . . . . Scanalyzer . | . . . . . . . . . . . Garrison Access Hacks 1 | . . . . . . . 1 . . . Unlock Access 1 | . . . . . . . 1 . . . Unauthorized Hacks . | . . . . . . . . . . . Terminals . | . . . . . . . . . . . Fabricators . | . . . . . . . . . . . Repair Stations . | . . . . . . . . . . . Recycling Units . | . . . . . . . . . . . Scanalyzers . | . . . . . . . . . . . Garrison Access . | . . . . . . . . . . . Data Cores Recovered . | . . . . . . . . . . . Used . | . . . . . . . . . . . Hacking Detections 4 | . . . 1 . . . 1 . 1 1 Full Trace Events 2 | . . . . . . . . . 1 1 Feedback Events . | . . . . . . . . . . . Feedback Blocked . | . . . . . . . . . . . Robot Schematics Acquired . | . . . . . . . . . . . Robots Built . | . . . . . . . . . . . Authchips . | . . . . . . . . . . . Time . | . . . . . . . . . . . Total Robot Build Rating . | . . . . . . . . . . . Part Schematics Acquired . | . . . . . . . . . . . Parts Built . | . . . . . . . . . . . Authchips . | . . . . . . . . . . . Time . | . . . . . . . . . . . Total Part Build Rating . | . . . . . . . . . . . Parts Repaired . | . . . . . . . . . . . Time . | . . . . . . . . . . . Parts Recycled . | . . . . . . . . . . . Recycled Matter . | . . . . . . . . . . . Retrieved Matter . | . . . . . . . . . . . Retrieved Components . | . . . . . . . . . . . Parts Scanalyzed . | . . . . . . . . . . . Part Schematics Acquired . | . . . . . . . . . . . Parts Damaged . | . . . . . . . . . . . Bothacking | -11 -10 -10 -9 -9 -9 -8 -8 -8 -8 -7 ------------ Run | Yrd Mat Min Mat Min Exi Min Mat Gar Mat Fac Used RIF Installer . | . . . . . . . . . . . Robots Hacked . | . . . . . . . . . . . Non-combat . | . . . . . . . . . . . Combat . | . . . . . . . . . . . Robot Hacks Applied . | . . . . . . . . . . . Relay Couplers Released . | . . . . . . . . . . . Fabnet Peak Effective % . | . . . . . . . . . . . Robots Rewired . | . . . . . . . . . . . Allies Hacked . | . . . . . . . . . . . Hacks Repelled . | . . . . . . . . . . . Allies | -11 -10 -10 -9 -9 -9 -8 -8 -8 -8 -7 -------- Run | Yrd Mat Min Mat Min Exi Min Mat Gar Mat Fac Total Allies 1 | . . 1 . . . . . . . . Largest Group 1 | . . 1 1 . . . . . . . Highest-Rated Group 31 | . . 31 31 . . . . . . . Highest-Rated Ally 31 | . . 31 31 . . . . . . . Total Orders . | . . . . . . . . . . . Ally Attacks 9 | . . . 9 . . . . . . . Total Damage 62 | . . . 62 . . . . . . . Kills 1 | . . . 1 . . . . . . . Allies Corrupted . | . . . . . . . . . . . Allies Melted . | . . . . . . . . . . . Intel | -11 -10 -10 -9 -9 -9 -8 -8 -8 -8 -7 ------- Run | Yrd Mat Min Mat Min Exi Min Mat Gar Mat Fac Active Infowar (turns) 4168 | . . 1180 483 133 1608 305 459 . . . Terrain 4168 | . . 1180 483 133 1608 305 459 . . . Robot Analysis Total . | . . . . . . . . . . . Derelict Logs Recovered 1 | . . 1 . . . . . . . . Drone Launches . | . . . . . . . . . . . Drone Recoveries . | . . . . . . . . . . . Exploration | -11 -10 -10 -9 -9 -9 -8 -8 -8 -8 -7 ------------- Run | Yrd Mat Min Mat Min Exi Min Mat Gar Mat Fac Turns Passed 8924 | 167 697 1628 483 133 1608 305 1235 820 555 1293 Spaces Moved 3512 | 95 379 765 249 55 671 127 390 247 146 388 Core 8 | 8 . . . . . . . . . . Treads 3504 | 87 379 765 249 55 671 127 390 247 146 388 Legs . | . . . . . . . . . . . Wheels . | . . . . . . . . . . . Hover . | . . . . . . . . . . . Flight . | . . . . . . . . . . . Fastest Speed 50 | 50 160 160 160 240 240 240 160 240 240 240 Average Speed 218 | 150 160 180 164 240 240 240 243 290 319 248 Slowest Speed 480 | 160 160 240 240 240 240 240 480 320 320 400 Overloaded Moves . | . . . . . . . . . . . Propulsion Burnouts . | . . . . . . . . . . . Robots Hopped . | . . . . . . . . . . . Potential Cave-ins . | . . . . . . . . . . . Cave-ins Triggered . | . . . . . . . . . . . Exploration Rate (%) 40 | 6 62 98 25 20 92 44 37 34 12 14 Regions Visited 10 Branch Regions 4 Pre-discovered Areas 2 | . . 1 . . 1 . . . . . Known Exits Taken 9 | 1 1 1 1 1 1 1 1 . 1 . Unknown Exits Taken . | . . . . . . . . . . . Scrap Searched . | . . . . . . . . . . . Spaces Dug 1 | . . . . . . . 1 . . . Terrain Destroyed 172 | . . . 24 . . . 141 . . 7 Melee . | . . . . . . . . . . . Projectile 3 | . . . . . . . 3 . . . AOE 169 | . . . 24 . . . 138 . . 7 Terrain Rammed . | . . . . . . . . . . . Walls Destroyed . | . . . . . . . . . . . Machines Disabled . | . . . . . . . . . . . Actions | -11 -10 -10 -9 -9 -9 -8 -8 -8 -8 -7 --------- Run | Yrd Mat Min Mat Min Exi Min Mat Gar Mat Fac Total 4344 | 116 432 966 302 59 670 127 552 300 215 605 Wait 387 | 11 . 151 31 . . . 31 . 51 112 Move 3502 | 94 378 764 248 54 670 126 389 246 145 388 Hop . | . . . . . . . . . . . Pick Up 27 | 3 7 2 2 . . . 3 . 1 9 Fast Attach 30 | 7 . 3 3 . . . 6 5 3 3 Attach 21 | . 2 2 . . . . 10 . . 7 Detach 4 | . . 1 . . . . 1 . . 2 Swap 37 | . 1 2 6 . . . 9 2 4 13 Drop 21 | 1 1 2 . 5 . . 1 2 3 6 Fire 296 | . 42 34 12 . . 1 97 37 8 65 Melee 5 | . . . . . . . 5 . . . Ram . | . . . . . . . . . . . Kick . | . . . . . . . . . . . Crush 6 | . 1 5 . . . . . . . . Escape Stasis 8 | . . . . . . . . 8 . . Rewire . | . . . . . . . . . . . Trap . | . . . . . . . . . . . Miscellaneous . | . . . . . . . . . . . Route ------- -11/Scrapyard -10/Materials (discovered 4 exits: *Mat x2 / *Min x2) -10/Mines (discovered 2 exits: *Mat x2) -9/Materials (discovered 4 exits: Mat x3 / *Min) -9/Mines -9/Exiles (discovered 2 exits: *Min x2) -8/Mines -8/Materials -8/Garrison -8/Materials (discovered 3 exits: *Fac x3) -7/Factory History --------- Turn | Location | Event 6 | -11/Scrapyard | Met Revision 17 11 | -11/Scrapyard | Identified exit to Materials 11 | -11/Scrapyard | Discovered exit to Materials (range 16) 168 | -11/Scrapyard | Entered Materials 168 | -10/Materials | Evolved 1 slot: Utility x1 177 | -10/Materials | Identified exit to Mines 303 | -10/Materials | Build established: Hacker-Mutant 422 | -10/Materials | Identified exit to Materials 422 | -10/Materials | Discovered exit to Materials (range 4) 685 | -10/Materials | Discovered exit to Materials (range 16) 865 | -10/Materials | Entered Mines 923 | -10/Mines | Discovered exit to Materials (range 16) 1101 | -10/Mines | A weapon hastily lodged in a ceiling crevice suddenly fell to the ground 1544 | -10/Mines | Found a hidden stash of uninstalled traps 1702 | -10/Mines | Learned location of Zion (-6) 1717 | -10/Mines | Joined a pair of Derelicts in attacking an 0b10 outpost 1855 | -10/Mines | Core integrity fell below 50% 1931 | -10/Mines | Received a Rocket Launcher from a helpful Derelict 2444 | -10/Mines | Discovered exit to Materials (range 11) 2459 | -10/Mines | Received a Mining Laser from a helpful Derelict 2493 | -10/Mines | Entered Materials 2493 | -9/Materials | Accompanied by 1 ally 2493 | -9/Materials | Evolved 2 slots: Utility x2 2543 | -9/Materials | Identified exit to Materials 2745 | -9/Materials | Identified exit to Mines 2745 | -9/Materials | Discovered exit to Mines (range 8) 2976 | -9/Materials | Entered Mines 2977 | -9/Mines | Assembled infested the area 3034 | -9/Mines | Met 8R-AWN 3099 | -9/Mines | Identified exit to Exiles 3099 | -9/Mines | Discovered exit to Exiles (range 5) 3109 | -9/Mines | Entered Exiles 3150 | -9/Exiles | Identified exit to Mines 3150 | -9/Exiles | Discovered exit to Mines (range 15) 3177 | -9/Exiles | Welcomed by 8R-AWN 3220 | -9/Exiles | Met EX-HEX 3323 | -9/Exiles | Met EX-DEC 3520 | -9/Exiles | Discovered exit to Mines (range 14) 3694 | -9/Exiles | Visited The Gauntlet 4221 | -9/Exiles | Met EX-BIN 4276 | -9/Exiles | Aligned with FarCom system 4278 | -9/Exiles | Given EX-Vault access code 4717 | -9/Exiles | Entered Mines 4928 | -8/Mines | Discovered exit to Materials (range 14) 5014 | -8/Mines | Build established: Hacker-Assassin 5022 | -8/Mines | Entered Materials 5022 | -8/Materials | Evolved 2 slots: Power x1, Propulsion x1 5670 | -8/Materials | Garrison activated, responded to threat 5788 | -8/Materials | Build established: Hacker-Mutant 5973 | -8/Materials | Garrison activated, responded to threat 6023 | -8/Materials | Lost 9 parts (1p3n2u3w) 6053 | -8/Materials | Core integrity fell below 50% 6254 | -8/Materials | Identified exit to Garrison 6257 | -8/Materials | Entered Garrison 6423 | -8/Garrison | Triggered checkpoint 6505 | -8/Garrison | Triggered checkpoint 6927 | -8/Garrison | Triggered checkpoint 6995 | -8/Garrison | Triggered checkpoint 7015 | -8/Garrison | Triggered checkpoint 7034 | -8/Garrison | Identified exit to Materials 7034 | -8/Garrison | Discovered exit to Materials (range 10) 7077 | -8/Garrison | Entered Materials 7251 | -8/Materials | Build established: Scavenger-Mutant 7329 | -8/Materials | Identified exit to Factory 7632 | -8/Materials | Entered Factory 7632 | -7/Factory | Evolved 2 slots: Propulsion x1, Weapon x1 8240 | -7/Factory | Core integrity fell below 50% 8736 | -7/Factory | Build established: Scavenger-Tank 8895 | -7/Factory | Garrison activated, responded to threat 8925 | -7/Factory | Self-destructed Last Messages --------------- Broken Lgt. Treads destroyed. P-60 Hacker calls for garrison reinforcements. ALERT: Activating Garrison Access F001. System corrupted: Heat flow error (+164). Power failure, Mic. Nuclear Core shutdown. Overheating: System interference. Prc. Shock Rifle temporarily disabled. Prc. Shock Rifle destroyed. System corrupted: Prc. Shock Rifle failed to cycle. K-01 Serf collects debris. Lgt. Treads destroyed. K-01 Serf collects debris. Broken Lgt. Treads destroyed. Overheating: Huge Storage Unit damaged (-17). Power failure, Mic. Nuclear Core shutdown. K-01 Serf collects debris. K-01 Serf cleans the Assembly Bed. K-01 Serf collects debris. System corrupted: Energy discharge (-18). Map ----- +----------------------------------------------------+ | "" # #??????????????????????????? | | !# #??????????????????????????? | | ! ! # #??????????????????????????? | | ########## #??????????????????????????? | | ????????# #??????????????????????????? | | ????????## = #??????????????????????????? | | ?????????# #??????????????????????????? | | ?????????#####+########??????????????????????????? | | ?????????????# #?????????????????????????????????? | | ?????????????# #???????????????Y?????????????????? | | ????####????## ##????????????????????????????????? | | ????# ???## ##????????????????????????????????? | | ????# ???## ###??????????###+????#????????????? | | ????# ?## ##?????????? T ?? #????????????? | | ????# ### #######????# w""" #????????????? | | ????# """ + + """ #????????????? | | ????# """ ### #######????# """ #????????????? | | ????# """ ??# #??????????# #????????????? | | ????# ???# #??????????# /!! #????????????? | | ????# " "s??# #??????????# /!! ??????????????? | | ????# "G????# #??????????# /!! ????????????????? | | ????# ""?s??# #####??#+#?# ??????????????????? | | ????# ???### ##T #### #?#+#???????????????????? | | ???####+### ! #?# #???????????????????? | | ???# ^ | =!### #???????????????????? | | ???# = @! #######?????????????? | | ???# !=[ +?????????????? | | ???# k [ ####?????????????? | | #### """"" p #????????????????? | | # "" F" #????????????????? | | # "" "" k %#????????????????? | | # """" """" """" ?????????????? | | + """" """" """" ###????????????? | | # """" """" """" #??????????????? | | # """" """" """" #??????????????? | | ! # """" """" """" #??????????????? | | # """" """" """" #??????????????? | | #### #??????????????? | | ???# ? #??????????????? | | ???# ##### ?? #??????????????? | | ???# #???? ?? #??????????????? | | ???# #???? ?? #??????????????? | | ???# #### #####+#???? ?? #??????????????? | | ######+#+####+#?????????????? ??????????????? | | #?????????????? ??????????????? | | """""" #?????????????? ????????????????? | | """""" #??????????????????????????????????? | | """""" #??????????????????????????????????? | | """""" #??????????????????????????????????? | | #??????????????????????????????????? | +----------------------------------------------------+ Best States ------------- Heat Dissipation 41 Energy Generation 24 Energy Capacity 335 Matter Stores 342 Matter Capacity 450 Sight Range 16 Terrain Scan Range 16 Terrain Scan Density 10 Additional Mass Support 9 Armor Coverage 675 Resistance: KI 35 Resistance: TH 35 Resistance: EX 35 Resistance: EM 35 Resistance: I 35 Resistance: S 35 Resistance: P 35 Core Shielding 20 Propulsion Shielding 33 Evasion (%) 50 Targeting Accuracy 10 Recoil Reduction 4 Offensive Hacking 20 Item Schematics ----------------- None Robot Schematics ------------------ None Fabricated ------------ Nothing Repaired ---------- Nothing Alien Tech Used ----------------- None Achievements -------------- Loot Pinata Please Form A Line Troublemaker Challenges ------------ None Game ------ Seed UtilityJammingFlamer Manual? 0 Play Time 01:04:55 Cumulative 7.7 hours Start 2025.08.04 @ 21:38:04 End 2025.08.04 @ 22:52:52 Sessions 3 Manual Loads 0 Difficulty Explorer Special Mode None Game No. 4 Rogue 0 Adventurer 0 Explorer 4 Win Type - Total 1 Types 1/0/0/0/0/0/0/0/0/0 Lore% 2 Gallery% 12 Achievement% 14 Wizard Run 0 Options --------- Layout 1 ASCII 0 Keyboard 0 Movement Mouse Keybinds 0 Fullscreen 1 Font 24/Smallcaps Map View 50x35 Zoom Use 0% Tactical HUD 0 Map Filters NONE Filters NONE Steam 1 RUN: c86f6295-dc4d-4cd8-9bc2-5eb358dd0710